bitfinex/quotes_SOLUSD_20250228
["timestamp","ask_amount","ask_price","bid_price","bid_amount"]
[1740742744532,0.03,133.43,133.37,223.9831]
[1740742745419,0.03,133.43,133.41,312.0]
[1740742746630,20.03,133.43,133.41,312.0]
[1740742747207,0.03,133.43,133.41,312.0]
[1740742747808,2.7794,133.43,133.37,0.0001]
[1740742748012,22.0,133.42,133.37,0.0001]
[1740742749636,20.0,133.42,133.37,0.0001]
[1740742750137,0.03,133.43,133.37,80.6631]
[1740742750836,0.03,133.43,133.4,312.0]
[1740742751514,0.03,133.43,133.4,80.663]
[1740742752041,0.03,133.43,133.4,87.543]
[1740742752215,0.03,133.43,133.41,1.5773]
[1740742752409,0.03,133.43,133.42,18.79181043]
[1740742752630,0.03,133.48,133.44,18.79181043]
[1740742752931,0.03,133.48,133.46,13.27756157]
[1740742753139,0.03,133.48,133.46,230.44056157]
[1740742753342,0.03,133.48,133.47,18.64964886]
[1740742753510,0.03,133.48,133.47,235.81264886]
[1740742753713,0.03,133.5,133.48,0.14216157]
[1740742753910,0.03,133.5,133.49,18.64964886]
[1740742754522,0.03,133.5,133.49,330.64964886]
[1740742754916,0.03,133.5,133.49,338.14074886]
[1740742755112,0.03,133.5,133.49,319.4911]
[1740742755339,0.03,133.5,133.49,312.0]
[1740742755855,0.03,133.5,133.45,80.663]
[1740742756221,0.03,133.5,133.45,224.6563]
[1740742756417,0.03,133.5,133.46,18.79181043]
[1740742757124,0.03,133.5,133.46,243.44751043]
[1740742758839,0.03,133.5,133.49,312.0]
[1740742759339,0.03,133.5,133.49,536.6541]
[1740742760441,0.03,133.5,133.49,529.163]
[1740742762034,0.03,133.5,133.49,529.30516157]
[1740742763242,0.03,133.5,133.49,551.87516157]
[1740742763441,0.03,133.5,133.49,529.30516157]
[1740742767655,0.03,133.5,133.49,529.163]
[1740742768247,0.03,133.5,133.49,392.663]
[1740742769344,0.03,133.5,133.49,400.29626157]
[1740742770857,0.03,133.5,133.49,418.94591043]
[1740742773458,0.03,133.5,133.49,441.51591043]
[1740742774966,0.03,133.5,133.49,578.01591043]
[1740742775171,0.0001,133.5,133.49,589.22491043]
[1740742776061,0.03,133.57,133.53,22.57]
[1740742776361,0.03,133.57,133.56,0.14216157]
[1740742776554,0.03,133.57,133.56,217.30516157]
[1740742778353,0.03,133.57,133.56,217.163]
[1740742779259,0.03,133.57,133.56,529.163]
[1740742780772,0.03,133.57,133.56,392.663]
[1740742781146,0.03,133.57,133.56,80.663]
[1740742784073,0.03,133.57,133.56,392.663]
[1740742785166,0.03,133.57,133.56,80.663]
[1740742788176,0.03,133.57,133.56,392.663]
[1740742788887,0.03,133.57,133.56,80.663]
[1740742791788,0.03,133.57,133.56,392.663]
[1740742792990,0.03,133.57,133.56,529.30516157]
[1740742793171,0.03,133.57,133.56,555.44201043]
[1740742798884,0.03,133.57,133.56,529.163]
[1740742799076,0.03,133.57,133.56,536.6502]
[1740742799278,0.03,133.57,133.56,536.79236157]
[1740742799480,0.03,133.57,133.56,529.163]
[1740742799689,0.03,133.57,133.56,536.6502]
[1740742799862,0.03,133.57,133.56,536.79236157]
[1740742800782,0.03,133.57,133.56,555.44201043]
[1740742803679,0.03,133.57,133.56,536.79236157]
[1740742803989,6.6822,133.57,133.54,217.163]
[1740742805095,0.03,133.57,133.54,224.6513]
[1740742805264,0.03,133.57,133.55,25.61181043]
[1740742805471,0.03,133.57,133.55,6.96216157]
[1740742805795,0.03,133.57,133.55,6.82]
[1740742806988,0.03,133.57,133.56,312.0]
[1740742807877,20.03,133.57,133.56,312.0]
[1740742808075,21.6379,133.57,133.51,6.82]
[1740742808289,20.0,133.56,133.51,80.663]
[1740742808493,20.0,133.55,133.51,80.663]
[1740742809091,20.0,133.56,133.51,80.663]
[1740742809698,0.7487,133.55,133.51,80.663]
[1740742809991,20.7487,133.55,133.51,80.663]
[1740742811088,0.7487,133.55,133.53,312.0]
[1740742812078,6.563,133.54,133.53,312.0]
[1740742813395,7.3118,133.54,133.53,312.0]
[1740742815008,7.3118,133.54,133.51,80.663]
[1740742816190,21.8718,133.56,133.51,80.663]
[1740742816191,1.6379,133.57,133.51,88.1529]
[1740742816385,1.6379,133.57,133.52,0.14216157]
[1740742816386,0.03,133.57,133.52,0.14216157]
[1740742816594,0.03,133.57,133.52,235.95481043]
[1740742816910,0.03,133.57,133.54,18.79181043]
[1740742817083,0.03,133.57,133.56,18.64964886]
[1740742817280,0.03,133.57,133.55,6.8]
[1740742817487,0.03,133.57,133.56,0.14216157]
[1740742818104,0.03,133.57,133.56,312.14216157]
[1740742818805,0.03,133.57,133.56,319.62936157]
[1740742819311,0.03,133.57,133.56,312.0]
[1740742820589,0.03,133.57,133.56,319.62936157]
[1740742821282,0.03,133.57,133.56,312.0]
[1740742821989,0.03,133.57,133.56,319.4872]
[1740742822520,0.03,133.57,133.56,536.6502]
[1740742823408,0.03,133.57,133.56,529.163]
[1740742825527,0.03,133.57,133.56,536.6502]
[1740742826018,0.03,133.57,133.56,555.44201043]
[1740742828215,0.03,133.57,133.56,536.79236157]
[1740742828820,0.03,133.57,133.56,555.44201043]
[1740742830138,0.0001,133.57,133.56,580.01201043]
[1740742830425,0.0001,133.62,133.6,41.21964886]
[1740742830615,0.0001,133.62,133.61,53.73258594]
[1740742830820,0.03,133.64,133.63,0.14216157]
[1740742831022,0.03,133.64,133.63,218.87577779]
[1740742831223,0.03,133.64,133.63,217.30516157]
[1740742831802,0.03,133.64,133.63,224.78846157]
[1740742832011,0.0001,133.64,133.63,266.00811043]
[1740742832332,0.0001,133.64,133.63,270.00811043]
[1740742833406,0.03,133.7,133.68,18.64964886]
[1740742833705,0.12583047,133.71,133.7,20.79181043]
[1740742834005,3.047e-05,133.71,133.7,262.52481043]
[1740742834213,3.047e-05,133.72,133.71,22.79181043]
[1740742834420,3.047e-05,133.72,133.71,264.09403449]
[1740742834614,3.047e-05,133.72,133.71,239.95481043]
[1740742834809,3.047e-05,133.72,133.71,237.95481043]
[1740742835009,3.047e-05,133.72,133.71,239.95481043]
[1740742835313,11.81076093,133.8,133.75,2.14216157]
[1740742835515,11.81076093,133.8,133.78,0.14216157]
[1740742835731,11.81076093,133.8,133.78,217.30516157]
[1740742835940,6.1784,133.82,133.78,217.30516157]
[1740742836109,2.0,133.88,133.8,0.14216157]
[1740742836314,8.447,133.89,133.8,217.30516157]
[1740742836513,12.3142,133.89,133.81,6.82]
[1740742836730,20.0,133.86,133.81,6.82]
[1740742837231,20.0,133.86,133.82,312.0]
[1740742837421,22.64964886,133.88,133.82,312.0]
[1740742837936,0.7471,133.84,133.82,312.0]
[1740742839236,20.7471,133.84,133.81,6.82]
[1740742839440,2.615,133.84,133.8,80.663]
[1740742839611,20.0,133.83,133.8,80.663]
[1740742839932,0.7473,133.8,133.76,143.32]
[1740742840239,0.7473,133.8,133.76,6.82]
[1740742841619,8.2457,133.81,133.76,223.983]
[1740742841927,20.0,133.82,133.76,223.983]
[1740742842116,6.1129,133.85,133.77,0.14216157]
[1740742842308,20.0,133.83,133.82,312.0]
[1740742842506,0.7471,133.84,133.82,312.0]
[1740742843028,0.7471,133.84,133.77,217.163]
[1740742843816,20.0,133.82,133.77,217.163]
[1740742844029,4.615,133.84,133.77,80.663]
[1740742844229,20.0,133.81,133.77,80.663]
[1740742844615,0.7471,133.84,133.77,88.1385]
[1740742844813,20.0,133.82,133.77,224.6385]
[1740742845215,0.7471,133.84,133.77,224.6385]
[1740742845415,6.1129,133.85,133.79,0.14216157]
[1740742845640,6.1129,133.85,133.79,217.30516157]
[1740742845928,1.5809,133.87,133.82,7.4727]
[1740742846127,6.6015,133.89,133.86,312.0]
[1740742846834,2.2587,133.91,133.86,217.163]
[1740742847022,1.512,133.91,133.86,217.163]
[1740742847223,0.7467,133.92,133.86,217.163]
[1740742847224,6.2016,133.93,133.87,0.14216157]
[1740742847431,6.9482,133.93,133.88,6.84]
[1740742847932,8.8148,133.93,133.88,6.84]
[1740742849222,6.9482,133.93,133.88,6.84]
[1740742849842,6.9482,133.93,133.9,312.0]
[1740742850038,6.9782,133.93,133.9,312.0]
[1740742850250,20.0,133.9,133.83,6.86]
[1740742850546,0.7468,133.89,133.83,224.023]
[1740742850934,2.614,133.89,133.83,224.023]
[1740742851121,22.614,133.89,133.83,224.023]
[1740742851322,20.7468,133.89,133.83,224.023]
[1740742852240,6.86,133.92,133.84,0.14216157]
[1740742852445,0.7467,133.92,133.84,1.71048704]
[1740742852651,6.9782,133.93,133.86,0.14216157]
[1740742852953,6.2316,133.93,133.86,218.87311865]
[1740742853136,6.2316,133.93,133.91,312.0]
[1740742853451,6.9782,133.93,133.91,312.0]
[1740742853627,6.9782,133.93,133.89,6.86]
[1740742854446,6.9782,133.93,133.86,224.043]
[1740742854950,20.0,133.9,133.86,87.543]
[1740742855152,20.0,133.9,133.86,6.88]
[1740742856249,20.0,133.9,133.83,224.043]
[1740742856562,0.7468,133.89,133.83,224.043]
[1740742856849,0.7468,133.89,133.83,543.5151]
[1740742857143,0.7468,133.89,133.83,231.5151]
[1740742857846,20.7468,133.89,133.83,224.043]
[1740742859541,0.7468,133.89,133.83,224.043]
[1740742859850,20.7468,133.89,133.83,224.043]
[1740742860061,20.7468,133.89,133.83,231.5149]
[1740742860351,0.7468,133.89,133.84,312.0]
[1740742860751,0.7468,133.89,133.84,319.4714]
[1740742861055,0.7468,133.89,133.84,224.6344]
[1740742861251,0.7468,133.89,133.84,217.163]
[1740742861736,20.7468,133.89,133.84,80.663]
[1740742861942,1.5087,133.88,133.83,143.38]
[1740742862561,0.03,133.89,133.84,0.14216157]
[1740742863042,0.03,133.89,133.84,18.79181043]
[1740742863247,0.03,133.89,133.84,41.36181043]
[1740742863643,0.03,133.89,133.87,0.14216157]
[1740742863844,0.03,133.89,133.88,360.09964886]
[1740742864159,0.03,133.89,133.88,579.40481043]
[1740742864536,0.03,133.89,133.88,586.87411043]
[1740742864834,0.03,133.89,133.88,584.87411043]
[1740742865036,0.03,133.89,133.88,586.87411043]
[1740742865348,0.03,133.93,133.89,0.14216157]
[1740742865541,0.03,133.93,133.89,239.87516157]
[1740742866653,0.03,133.93,133.92,41.21964886]
[1740742866860,0.03,133.93,133.92,262.09196456]
[1740742867051,6.5298,134.01,133.96,0.14216157]
[1740742867263,0.03,134.03,133.98,0.14216157]
[1740742867449,20.7761,134.03,133.97,6.92]
[1740742867760,20.7761,134.03,133.97,143.42]
[1740742868137,20.0,134.01,133.97,143.42]
[1740742868339,22.0,134.02,133.97,6.92]
[1740742868538,20.7463,133.98,133.97,312.0]
[1740742869249,28.1776,134.01,133.95,0.14216157]
[1740742869452,0.03,134.03,133.97,0.14216157]
[1740742869749,0.03,134.03,133.98,6.96]
[1740742869953,0.03,134.03,133.99,0.14216157]
[1740742870369,0.03,134.03,133.99,217.163]
[1740742870861,0.03,134.03,133.99,224.626]
[1740742871050,0.03,134.03,133.99,217.163]
[1740742871769,0.03,134.03,133.98,6.96]
[1740742872259,0.03,134.03,133.98,318.96]
[1740742872462,20.0,134.01,133.98,318.96]
[1740742872656,0.7462,134.0,133.98,318.96]
[1740742872960,20.7462,134.01,133.98,318.96]
[1740742873160,0.03,134.03,133.98,231.5867]
[1740742873546,0.7761,134.03,133.98,231.5867]
[1740742873742,0.03,134.03,133.98,231.5867]
[1740742873958,0.7761,134.03,133.98,231.5867]
[1740742874167,0.03,134.03,134.01,0.14216157]
[1740742874366,0.03,134.03,134.02,20.35785286]
[1740742874538,0.03,134.07,134.05,26.25171043]
[1740742874742,0.03,134.07,134.06,31.31739773]
[1740742875472,0.03,134.07,134.06,244.48039773]
[1740742875764,0.03,134.07,134.06,244.91481043]
[1740742875963,0.03,134.07,134.06,242.91481043]
[1740742876162,0.03,134.07,134.06,554.91481043]
[1740742876548,0.03,134.07,134.06,566.37411043]
[1740742877141,8.3468,134.17,134.11,0.14216157]
[1740742877345,7.6015,134.17,134.13,0.14216157]
[1740742877548,50.70143245,134.18,134.13,0.14216157]
[1740742877947,51.44663245,134.18,134.13,0.14216157]
[1740742878150,51.44663245,134.18,134.12,7.0]
[1740742878363,51.44663245,134.18,134.13,18.79181043]
[1740742878567,50.70143245,134.18,134.13,18.79181043]
[1740742878862,50.70143245,134.18,134.13,26.24711043]
[1740742879068,50.70143245,134.18,134.13,246.97483403]
[1740742879268,50.70143245,134.18,134.17,0.14216157]
[1740742879475,50.70143245,134.18,134.17,224.36516157]
[1740742879768,50.70143245,134.18,134.17,224.223]
[1740742880264,50.70143245,134.18,134.17,536.223]
[1740742880466,50.70143245,134.18,134.17,536.36516157]
[1740742881146,50.70143245,134.18,134.17,536.223]
[1740742881463,50.70143245,134.18,134.17,562.46801043]
[1740742881767,50.70143245,134.18,134.17,564.46801043]
[1740742882152,50.70143245,134.18,134.17,555.01481043]
[1740742882365,50.70143245,134.18,134.17,562.46801043]
[1740742882577,50.70143245,134.18,134.17,566.46801043]
[1740742882952,12.27123245,134.18,134.17,566.46801043]
[1740742883152,3.245e-05,134.18,134.17,566.46801043]
[1740742883864,0.05,134.21,134.2,4.14216157]
[1740742884068,0.0001,134.21,134.2,261.51845559]
[1740742884366,0.0001,134.21,134.2,259.95481043]
[1740742884567,0.0001,134.21,134.2,267.40631043]
[1740742885660,0.40503262,134.24,134.2,267.40631043]
[1740742885661,0.40503262,134.24,134.23,4.14216157]
[1740742885856,0.40503262,134.24,134.23,227.9085427]
[1740742886162,0.40503262,134.24,134.23,246.99481043]
[1740742886667,0.40503262,134.24,134.23,254.44461043]
[1740742887069,0.40503262,134.24,134.23,566.44461043]
[1740742887455,11.54859069,134.29,134.28,4.0]
[1740742887653,9.069e-05,134.29,134.28,381.71180504]
[1740742887847,9.069e-05,134.29,134.28,398.79866585]
[1740742888264,0.03,134.38,134.37,24.14216157]
[1740742888459,0.03,134.38,134.37,147.30382383]
[1740742888665,0.03,134.38,134.37,156.74592383]
[1740742888969,0.03,134.38,134.37,175.39557269]
[1740742889181,0.03,134.38,134.37,173.83391043]
[1740742889386,0.03,134.38,134.37,171.83391043]
[1740742889554,0.03,134.38,134.37,155.29181043]
[1740742889888,0.03,134.38,134.35,136.5]
[1740742890863,0.03,134.38,134.33,455.64]
[1740742891683,0.03,134.38,134.31,80.663]
[1740742891684,0.03,134.38,134.31,217.163]
[1740742891870,0.03,134.38,134.34,2.0]
[1740742892062,0.03,134.38,134.36,0.14216157]
[1740742892277,0.03,134.38,134.36,136.64216157]
[1740742893051,0.03,134.38,134.36,136.5]
[1740742893666,0.03,134.38,134.37,0.14216157]
[1740742893877,0.03,134.38,134.37,217.163]
[1740742894076,0.03,134.38,134.37,217.30516157]
[1740742894592,0.03,134.38,134.37,529.163]
[1740742894768,43.04527735,134.39,134.37,529.163]
[1740742895170,43.04527735,134.39,134.37,217.163]
[1740742895583,43.04527735,134.39,134.38,20.35391728]
[1740742896492,43.04527735,134.39,134.38,20.35369277]
[1740742896700,43.04527735,134.39,134.37,217.163]
[1740742897570,43.04527735,134.39,134.38,0.14216157]
[1740742897772,43.04527735,134.39,134.38,237.51684196]
[1740742898007,43.04527735,134.39,134.38,260.34481043]
[1740742898222,42.90317735,134.39,134.38,574.34481043]
[1740742898513,54.47368869,134.49,134.42,18.79181043]
[1740742898698,54.47368869,134.49,134.43,7.18]
[1740742899205,54.47368869,134.49,134.44,0.14216157]
[1740742899406,54.47368869,134.49,134.44,136.5]
[1740742899781,55.96078869,134.49,134.44,136.5]
[1740742899985,19.68369054,134.49,134.44,136.5]
[1740742900375,23.40139054,134.49,134.44,136.5]
[1740742901796,2.0,134.48,134.43,7.18]
[1740742901988,27.40139054,134.49,134.41,136.5]
[1740742902310,23.40139054,134.49,134.41,136.5]
[1740742903203,23.40139054,134.49,134.42,11.55843756]
[1740742903508,20.0,134.48,134.44,2.0]
[1740742903800,20.0,134.48,134.43,2.0]
[1740742904000,20.0,134.49,134.43,4.0]
[1740742904317,7.4349,134.5,134.45,2.0]
[1740742905382,7.4349,134.5,134.45,4.0]
[1740742905982,7.4349,134.5,134.45,2.0]
[1740742906506,20.0,134.47,134.44,7.2]
[1740742907083,1.4874,134.46,134.44,7.2]
[1740742907299,1.4874,134.46,134.45,2.0]
[1740742907715,1.4871,134.49,134.48,2.0]
[1740742907896,1.4871,134.49,134.48,4.0]
[1740742908099,1.4868,134.51,134.49,4.0]
[1740742908309,1.4868,134.51,134.49,2.0]
[1740742908503,1.4867,134.52,134.5,2.0]
[1740742908709,1.4867,134.52,134.5,4.0]
[1740742908907,1.4867,134.52,134.51,312.0]
[1740742909386,1.4862,134.57,134.52,2.0]
[1740742909586,1.4862,134.57,134.52,4.0]
[1740742909796,5.2019,134.57,134.52,4.0]
[1740742910297,5.2019,134.57,134.51,312.0]
[1740742910925,20.0,134.54,134.51,312.0]
[1740742911323,1.4866,134.53,134.51,312.0]
[1740742911621,0.7433,134.53,134.49,7.2]
[1740742911829,2.6016,134.53,134.5,4.0]
[1740742912127,2.6016,134.53,134.51,2.0]
[1740742912814,0.7433,134.53,134.52,2.0]
[1740742913013,0.7433,134.53,134.51,4.0]
[1740742913211,21.8581,134.55,134.51,4.0]
[1740742913513,22.6013,134.54,134.49,147.7]
[1740742913909,22.6013,134.54,134.49,140.5]
[1740742914116,26.3176,134.54,134.48,11.2]
[1740742914329,26.3176,134.54,134.48,9.2]
[1740742914622,26.3176,134.54,134.48,321.2]
[1740742915129,26.3176,134.54,134.48,312.0]
[1740742915327,20.0,134.49,134.46,9.2]
[1740742915627,20.0,134.49,134.46,7.2]
[1740742915914,6.3924,134.52,134.46,7.2]
[1740742916211,6.3924,134.52,134.46,9.2]
[1740742916813,6.3924,134.52,134.47,2.0]
[1740742917121,2.6019,134.51,134.47,2.0]
[1740742917914,6.319,134.51,134.46,2.0]
[1740742918310,6.319,134.51,134.46,314.0]
[1740742919118,6.319,134.51,134.46,316.0]
[1740742919411,6.3924,134.52,134.46,316.0]
[1740742919724,20.0,134.49,134.46,312.0]
[1740742921410,0.7436,134.48,134.46,312.0]
[1740742922333,20.0,134.49,134.44,9.2]
[1740742922636,20.0,134.49,134.42,4.0]
[1740742922831,20.0,134.49,134.43,4.0]
[1740742923041,20.0,134.49,134.43,2.0]
[1740742923219,20.0,134.49,134.42,9.18]
[1740742923419,20.0,134.49,134.42,321.18]
[1740742923622,20.0,134.49,134.42,323.18]
[1740742923945,0.20491048,134.48,134.42,323.18]
[1740742924148,0.20491048,134.48,134.42,321.18]
[1740742924447,20.20491048,134.48,134.41,2.0]
[1740742925326,26.52551048,134.48,134.41,2.0]
[1740742925629,30.24351048,134.48,134.41,2.0]
[1740742925833,20.0,134.44,134.39,9.2]
[1740742926020,20.0,134.44,134.39,7.2]
[1740742926221,20.0,134.44,134.4,2.0]
[1740742926620,20.0,134.44,134.4,4.0]
[1740742927132,20.0,134.44,134.39,9.2]
[1740742927335,20.0,134.44,134.39,7.2]
[1740742927540,2.6035,134.43,134.4,312.0]
[1740742928022,20.0,134.42,134.4,312.0]
[1740742928525,2.6035,134.43,134.4,312.0]
[1740742929442,3.7191,134.45,134.4,312.0]
[1740742929627,2.6029,134.46,134.4,314.0]
[1740742929827,2.6029,134.46,134.41,2.0]
[1740742930136,2.6029,134.46,134.4,316.0]
[1740742930342,2.6029,134.46,134.4,314.0]
[1740742930864,2.6029,134.46,134.42,2.0]
[1740742931024,0.7437,134.46,134.42,2.0]
[1740742931227,2.6029,134.46,134.4,4.0]
[1740742931518,2.6029,134.46,134.41,2.0]
[1740742931743,2.6029,134.46,134.41,4.0]
[1740742932132,20.0,134.44,134.4,2.0]
[1740742932350,20.0,134.44,134.39,147.7]
[1740742932857,20.0,134.44,134.39,145.7]
[1740742933026,20.0,134.44,134.39,143.7]
[1740742933228,20.0,134.44,134.39,147.7]
[1740742933426,20.0,134.44,134.39,143.7]
[1740742933754,2.6035,134.43,134.39,143.7]
[1740742933925,2.6035,134.43,134.39,455.7]
[1740742934126,2.6035,134.43,134.39,319.2]
[1740742934557,2.6035,134.43,134.41,0.063]
[1740742935559,20.0,134.39,134.35,2.0]
[1740742935858,0.7439,134.41,134.38,2.0]
[1740742936833,0.7439,134.41,134.39,2.0]
[1740742937144,0.7439,134.41,134.4,2.0]
[1740742937864,2.6033,134.44,134.4,314.0]
[1740742938542,2.6033,134.44,134.4,2.0]
[1740742938725,1.6245,134.46,134.43,2.0]
[1740742938726,2.3682,134.46,134.43,2.0]
[1740742938941,0.7436,134.47,134.44,4.0]
[1740742939248,0.20491048,134.48,134.45,2.0]
[1740742939445,0.94851048,134.48,134.46,4.0]
[1740742939646,0.7436,134.48,134.46,2.0]
[1740742939841,0.7435,134.49,134.45,138.5]
[1740742940055,2.6023,134.49,134.45,136.5]
[1740742940658,20.0,134.48,134.45,136.5]
[1740742941348,2.6023,134.49,134.45,138.5]
[1740742941543,2.6023,134.49,134.45,450.5]
[1740742941951,20.0,134.48,134.45,448.5]
[1740742942151,20.0,134.48,134.45,136.5]
[1740742942359,20.0,134.48,134.43,7.18]
[1740742942550,20.0,134.48,134.42,2.0]
[1740742943148,20.0,134.48,134.43,2.0]
[1740742943460,20.0,134.48,134.44,2.0]
[1740742943654,20.0,134.48,134.43,2.0]
[1740742943858,20.0,134.48,134.44,2.0]
[1740742944067,0.7436,134.47,134.45,2.0]
[1740742944365,0.7435,134.49,134.47,2.0]
[1740742945069,2.6023,134.49,134.46,9.18]
[1740742945265,2.6023,134.49,134.47,312.0]
[1740742945776,2.6023,134.49,134.46,7.18]
[1740742947849,2.6323,134.49,134.46,7.18]
[1740742948769,20.0,134.48,134.43,2.0]
[1740742948970,20.0,134.48,134.42,2.0]
[1740742949156,20.0,134.46,134.4,2.0]
[1740742949475,20.0,134.46,134.4,9.18]
[1740742950157,20.0,134.47,134.4,9.18]
[1740742951861,20.0,134.47,134.41,2.0]
[1740742952065,20.0,134.47,134.4,321.18]
[1740742952375,0.03,134.49,134.44,2.0]
[1740742952569,0.03,134.49,134.45,9.18]
[1740742952780,0.7735,134.49,134.47,2.0]
[1740742953766,0.03,134.49,134.48,2.0]
[1740742953962,0.03,134.49,134.48,4.0]
[1740742955578,0.03,134.49,134.48,316.0]
[1740742956373,0.03,134.49,134.48,460.07816157]
[1740742956573,0.03,134.49,134.48,478.72781043]
[1740742957388,0.0001,134.49,134.48,559.39081043]
[1740742957690,5.6245258,134.58,134.56,2.0]
[1740742957878,5.6245258,134.58,134.56,7.16]
[1740742958286,4.8815258,134.58,134.56,9.16]
[1740742958457,5.6245258,134.58,134.56,9.16]
[1740742958659,5.6245258,134.58,134.56,7.16]
[1740742960480,5.6245258,134.58,134.56,9.16]
[1740742960690,4.8815258,134.58,134.56,11.16]
[1740742960857,4.8815258,134.58,134.57,316.0]
[1740742961064,4.8815258,134.58,134.57,452.5]
[1740742962266,4.8815258,134.58,134.57,452.64216157]
[1740742962477,4.8815258,134.58,134.57,452.5]
[1740742963471,5.6245258,134.58,134.57,323.5]
[1740742963672,5.6245258,134.58,134.57,319.5]
[1740742964178,5.6245258,134.58,134.57,7.5]
[1740742965787,5.6245258,134.58,134.57,11.5]
[1740742966690,5.6245258,134.58,134.57,7.5]
[1740742966983,5.6245258,134.58,134.57,321.5]
[1740742967188,5.6245258,134.58,134.57,319.5]
[1740742968467,5.6245258,134.58,134.57,7.5]
[1740742969184,5.6245258,134.58,134.57,11.5]
[1740742969386,5.6245258,134.58,134.57,9.5]
[1740742969600,5.6245258,134.58,134.57,11.5]
[1740742969781,5.6245258,134.58,134.57,9.5]
[1740742969984,5.6245258,134.58,134.57,7.5]
[1740742970893,5.6245258,134.58,134.53,2.0]
[1740742970894,7.4821258,134.58,134.53,9.52]
[1740742971393,7.4821258,134.58,134.53,11.52]
[1740742971579,7.4821258,134.58,134.54,312.0]
[1740742972708,13.9121258,134.58,134.54,312.0]
[1740742972898,17.6273258,134.58,134.52,7.5]
[1740742973202,17.6273258,134.58,134.51,2.0]
[1740742973671,20.0,134.55,134.5,7.5]
[1740742973879,20.0,134.55,134.5,9.5]
[1740742974489,17.6273258,134.58,134.51,2.0]
[1740742975199,17.6273258,134.58,134.52,2.0]
[1740742975986,17.6273258,134.58,134.52,314.0]
[1740742977201,13.9121258,134.58,134.53,2.0]
[1740742977505,13.9121258,134.58,134.53,138.5]
[1740742977883,13.9121258,134.58,134.53,2.0]
[1740742978702,13.9121258,134.58,134.53,138.5]
[1740742979708,13.9121258,134.58,134.54,4.0]
[1740742980000,12.0545258,134.58,134.55,4.0]
[1740742980306,4.8815258,134.58,134.57,4.0]
[1740742980508,4.8815258,134.58,134.57,452.5]
[1740742980883,4.8815258,134.58,134.57,450.5]
[1740742981083,4.8815258,134.58,134.57,448.5]
[1740742981084,5.6245258,134.58,134.57,448.5]
[1740742981283,5.6245258,134.58,134.57,312.0]
[1740742981585,4.8815258,134.58,134.57,314.0]
[1740742981800,5.6245258,134.58,134.57,316.0]
[1740742982100,4.8815258,134.58,134.57,316.0]
[1740742982786,5.6245258,134.58,134.57,312.0]
[1740742982986,7.4821258,134.58,134.53,2.0]
[1740742983398,7.4821258,134.58,134.54,2.0]
[1740742983793,7.68703628,134.58,134.53,4.0]
[1740742984187,7.68703628,134.58,134.54,2.0]
[1740742984384,5.82943628,134.58,134.55,2.0]
[1740742984602,5.82943628,134.58,134.56,4.0]
[1740742984989,5.82943628,134.58,134.56,2.0]